Cogmind - Beta 12 @@@ ROGUE MODE // 2023.03.19 @ 16:01:10 Player: ZLD1 Result: Destroyed by Y-45 Defender with Heavy Assault Rifle Performance ------------- Evolutions (1) 500 Regions Visited (3) 600 Robots Destroyed (12) 60 Value Destroyed (269) 269 Prototype IDs (0) 0 Alien Tech Used (0) 0 Bonus (0) 0 TOTAL SCORE: 1429 Bonus ------- None Cogmind --------- Core Integrity 0/400 Matter 300/300 Energy 32/100 System Corruption 0% Temperature Warm (150) Movement Core (150) Ox2 Location -9/Storage Parts ------- > --- POWER (1) -------- (None) > --- PROPULSION (3) --- (None) > --- UTILITY (3) ------ Small Storage Unit > --- WEAPON (2) ------- Particle Cannon > --- INVENTORY (8) ---- Ion Engine Light Ion Engine Light Ion Engine Flight Unit Datajack Peak State ------------ > --- POWER ------------ Light Ion Engine > --- PROPULSION ------- Flight Unit Flight Unit Flight Unit > --- UTILITY ---------- Small Storage Unit > --- WEAPON ----------- Medium Laser Light Assault Rifle > --- INVENTORY -------- Ion Engine Light Ion Engine Light Ion Engine Datajack [Rating: 7] Favorites ----------- Power Ion Engine Engine Ion Engine Propulsion Aluminum Leg Leg Aluminum Leg Flight Unit Flight Unit Utility Small Storage Unit Storage Small Storage Unit Weapon Medium Laser Energy Gun Medium Laser Energy Cannon Particle Cannon Ballistic Gun Light Assault Rifle Build | -11 -10 -9 -9 ------- Run | Jun Mat Mat Sto Slots Evolved 2 | . . 2 . Power . | . . . . Propulsion 1 | . . 1 . Utility 1 | . . 1 . Weapon . | . . . . Parts Attached 12 | 6 . 5 1 Power 3 | 1 . 2 . Engine 3 | 1 . 2 . Core . | . . . . Reactor . | . . . . Propulsion 5 | 2 . 3 . Treads . | . . . . Leg 2 | 2 . . . Wheel . | . . . . Hover . | . . . . Flight 3 | . . 3 . Utility 1 | 1 . . . Device . | . . . . Storage 1 | 1 . . . Processor . | . . . . Hackware . | . . . . Protection . | . . . . Artifact . | . . . . Weapon 3 | 2 . . 1 Energy Gun 1 | 1 . . . Energy Cannon 1 | . . . 1 Ballistic Gun 1 | 1 . . . Ballistic Cannon . | . . . . Launcher . | . . . . Special Weapon . | . . . . Impact Weapon . | . . . . Slashing Weapon . | . . . . Piercing Weapon . | . . . . Special Melee Weapon . | . . . . Unidentified Prototypes . | . . . . Parts Lost 8 | . . 4 4 Power 3 | . . 2 1 Propulsion 3 | . . . 3 Utility . | . . . . Weapon 2 | . . 2 . Highest Loss Streak 7 | . . 3 7 To Critical Strikes . | . . . . Average Slot Usage (%) 67 | . 85 63 31 Engine 9 | . 14 7 4 Leg 19 | . 28 18 . Flight 3 | . . 5 9 Storage 12 | . 14 11 11 Energy Gun 10 | . 14 11 . Energy Cannon 1 | . . . 6 Ballistic Gun 10 | . 14 10 . Naked Turns . | . . . . Heaviest Build 13 | 13 13 13 9 Greatest Support 20 | 20 20 20 12 Greatest Overweight (x) 2 | . . . 2 Average Overweight (x) . | . . . . Largest Inventory Capacity 8 | 8 8 8 8 Average Capacity 7 | 6 8 8 8 Most Carried 8 | 5 4 8 6 Average Carried 3 | 2 2 4 4 Final Capacity 8 | 8 8 8 8 Final Carried 5 | 1 4 3 5 Class Distribution -------------------- 90% | Mutant 9% | Scavenger-Mutant Dominant Class ---------------- Mutant | -10/Materials Mutant | -9/Materials Mutant | -9/Storage Resources | -11 -10 -9 -9 ----------- Run | Jun Mat Mat Sto Matter Collected 302 | 157 12 109 24 Remotely . | . . . . Salvage Created 430 | . 86 187 157 Parts 22 | . 5 8 9 Haulers Intercepted . | . . . . Recyclers Shooed 1 | . . 1 . Parts Field Recycled . | . . . . Retrieved Matter . | . . . . Parts Self-Destructed . | . . . . Prevented . | . . . . Kills | -11 -10 -9 -9 ------- Run | Jun Mat Mat Sto Combat Hostiles Destroyed 11 | . 2 4 5 Guns 6 | . 2 4 . Cannons 5 | . . . 5 Classes Destroyed 4 | . 1 3 . Recycler 1 | . . 1 . Swarmer 6 | . . 3 3 Grunt 2 | . 2 . . Sentry 3 | . . 1 2 Best Kill Streak 5 | . 1 4 5 Combat Bots Only 5 | . 1 3 5 Max Kills in Single Turn 1 | . 1 1 1 Gunslinging . | . . . . Exploded . | . . . . Melee . | . . . . Uniques/NPCs Destroyed . | . . . . Combat | -11 -10 -9 -9 -------- Run | Jun Mat Mat Sto Damage Taken 1105 | . 314 211 580 Core 469 | . 69 57 343 Absorbed by Shields . | . . . . Core Remaining (%) 86 | 100 72 . . Volleys Fired 38 | . 7 17 14 Largest 2 | . 2 2 1 Hottest 70 | . 70 70 68 Shots Fired 60 | . 14 32 14 Gun 46 | . 14 32 . Cannon 14 | . . . 14 Launcher . | . . . . Special . | . . . . Kinetic 22 | . 7 15 . Thermal 38 | . 7 17 14 Explosive . | . . . . Electromagnetic . | . . . . Robot Hit Streak 9 | . 2 8 9 Robot Miss Streak 2 | . 2 2 2 Penetration Max . | . . . . Secondary Targets . | . . . . Shots Hit Robots 37 | . 6 21 10 Core Hits 15 | . 3 7 5 Critical Kills . | . . . . Critical Parts Destroyed . | . . . . Critical Strikes 4 | . 1 3 . Burn 4 | . 1 3 . Melee Attacks . | . . . . Impact . | . . . . Slashing . | . . . . Piercing . | . . . . Sneak Attacks . | . . . . Combat Hostiles . | . . . . Follow-up Attacks . | . . . . Damage Inflicted 515 | . 59 230 226 Guns 289 | . 59 230 . Cannons 226 | . . . 226 Explosions . | . . . . Melee . | . . . . Ramming . | . . . . Kinetic 87 | . 33 54 . Thermal 428 | . 26 176 226 Explosive . | . . . . Electromagnetic . | . . . . Impact . | . . . . Slashing . | . . . . Piercing . | . . . . Highest Corruption . | . . . . Average Corruption . | . . . . Corruption Purged . | . . . . Corruption Blocked . | . . . . Overload Shots . | . . . . Overflow Damage 12 | . . . 12 Projectiles 12 | . . . 12 Explosions . | . . . . Melee . | . . . . Knockbacks . | . . . . Impact . | . . . . Kinetic . | . . . . Secondary . | . . . . Self-Inflicted Damage . | . . . . Shots . | . . . . Rammed . | . . . . Targets Rammed . | . . . . Kicked . | . . . . Crushed . | . . . . Highest Temperature 146 | . 72 146 141 Average Temperature 48 | . 32 51 58 Received Heat Transfer 387 | . 153 63 171 Siege Activations . | . . . . Robots Corrupted . | . . . . Combat Hostiles . | . . . . Parts Fried . | . . . . Impact Corruptions . | . . . . Robots Melted . | . . . . Combat Hostiles . | . . . . Parts Melted 1 | . 1 . . Heat Transferred 1295 | . 148 740 407 Parts Sabotaged . | . . . . Parts Stolen . | . . . . Parts Stripped . | . . . . Power Chain Reactions . | . . . . Missiles Intercepted . | . . . . Alert | -11 -10 -9 -9 ------- Run | Jun Mat Mat Sto Peak Influence 182 | . 80 123 182 Initial 47 | . . 33 47 Average 50 | . 29 68 90 Maximum Alert Level . | . . . . Low Security (%) 100 | 100 100 100 100 Level 1 . | . . . . Level 2 . | . . . . Level 3 . | . . . . Level 4 . | . . . . Level 5 . | . . . . High Security . | . . . . Max Security . | . . . . Squads Dispatched 3 | . 2 . 1 Investigation 1 | . 1 . . Extermination . | . . . . Reinforcement 1 | . 1 . . Assault . | . . . . Garrison 1 | . . . 1 Intercept . | . . . . Searches Triggered . | . . . . Construction Impeded . | . . . . Haulers Reinforced . | . . . . Active Scanning Responses . | . . . . Cargo Convoy Interrupts . | . . . . Stealth | -11 -10 -9 -9 --------- Run | Jun Mat Mat Sto Distress Signals 1 | . 1 . . Communications Jammed . | . . . . Distress Signals . | . . . . Times Spotted 25 | . 10 7 8 Peak Tracking Total 8 | . 8 3 8 Tactical Retreats 1 | . 1 . . Traps | -11 -10 -9 -9 ------- Run | Jun Mat Mat Sto Traps Triggered 2 | . 2 . . Indirectly . | . . . . Trap Hack Attempts . | . . . . Triggered . | . . . . Disarmed . | . . . . Reprogrammed . | . . . . Reused . | . . . . Traps Extracted . | . . . . Installed . | . . . . Triggered . | . . . . Machines | -11 -10 -9 -9 ---------- Run | Jun Mat Mat Sto Machines Disabled . | . . . . Max in Single Turn . | . . . . Machines Repaired . | . . . . Machines Sabotaged . | . . . . Overloaded Fab Kills . | . . . . Hacking | -11 -10 -9 -9 --------- Run | Jun Mat Mat Sto Machines Accessed . | . . . . Terminals . | . . . . Fabricators . | . . . . Repair Stations . | . . . . Recycling Units . | . . . . Scanalyzers . | . . . . Garrison Access . | . . . . Total Hacks . | . . . . Successful . | . . . . Failed . | . . . . Catastrophic . | . . . . Database Lockouts . | . . . . Manual . | . . . . Terminals . | . . . . Fabricators . | . . . . Repair Stations . | . . . . Recycling Units . | . . . . Scanalyzers . | . . . . Garrison Access . | . . . . Terminal Hacks . | . . . . Fabricator Hacks . | . . . . Repair Station Hacks . | . . . . Recycling Unit Hacks . | . . . . Scanalyzer . | . . . . Garrison Access Hacks . | . . . . Unauthorized Hacks . | . . . . Terminals . | . . . . Fabricators . | . . . . Repair Stations . | . . . . Recycling Units . | . . . . Scanalyzers . | . . . . Garrison Access . | . . . . Data Cores Recovered . | . . . . Used . | . . . . Hacking Detections . | . . . . Full Trace Events . | . . . . Feedback Events . | . . . . Feedback Blocked . | . . . . Robot Schematics Acquired . | . . . . Robots Built . | . . . . Authchips . | . . . . Time . | . . . . Total Robot Build Rating . | . . . . Part Schematics Acquired . | . . . . Parts Built . | . . . . Authchips . | . . . . Time . | . . . . Total Part Build Rating . | . . . . Parts Repaired . | . . . . Time . | . . . . Parts Recycled . | . . . . Recycled Matter . | . . . . Retrieved Matter . | . . . . Retrieved Components . | . . . . Parts Scanalyzed . | . . . . Part Schematics Acquired . | . . . . Parts Damaged . | . . . . Bothacking | -11 -10 -9 -9 ------------ Run | Jun Mat Mat Sto Used RIF Installer . | . . . . Robots Hacked . | . . . . Non-combat . | . . . . Combat . | . . . . Robot Hacks Applied . | . . . . Relay Couplers Released . | . . . . Fabnet Peak Effective % . | . . . . Robots Rewired . | . . . . Allies Hacked . | . . . . Hacks Repelled . | . . . . Allies | -11 -10 -9 -9 -------- Run | Jun Mat Mat Sto Total Allies . | . . . . Largest Group . | . . . . Highest-Rated Group . | . . . . Highest-Rated Ally . | . . . . Total Orders . | . . . . Ally Attacks . | . . . . Total Damage . | . . . . Kills . | . . . . Allies Corrupted . | . . . . Allies Melted . | . . . . Intel | -11 -10 -9 -9 ------- Run | Jun Mat Mat Sto Robot Analysis Total . | . . . . Derelict Logs Recovered . | . . . . Drone Launches . | . . . . Drone Recoveries . | . . . . Exploration | -11 -10 -9 -9 ------------- Run | Jun Mat Mat Sto Turns Passed 469 | 46 174 184 65 Spaces Moved 293 | 34 121 69 69 Core 16 | 9 . . 7 Treads . | . . . . Legs 187 | 25 121 41 . Wheels . | . . . . Hover . | . . . . Flight 90 | . . 28 62 Fastest Speed 34 | 50 120 34 34 Average Speed 92 | 101 120 85 47 Slowest Speed 150 | 120 120 120 150 Overloaded Moves . | . . . . Propulsion Burnouts . | . . . . Robots Hopped 3 | . . 1 2 Cave-ins Triggered . | . . . . Exploration Rate (%) 15 | 3 32 7 20 Regions Visited 3 Branch Regions 1 Pre-discovered Areas . | . . . . Known Exits Taken . | . . . . Unknown Exits Taken 3 | 1 1 1 . Scrap Searched . | . . . . Spaces Dug . | . . . . Terrain Destroyed . | . . . . Melee . | . . . . Projectile . | . . . . AOE . | . . . . Terrain Rammed . | . . . . Walls Destroyed . | . . . . Machines Disabled . | . . . . Actions | -11 -10 -9 -9 --------- Run | Jun Mat Mat Sto Total 430 | 44 137 164 85 Wait 76 | . 7 69 . Move 284 | 33 120 66 65 Hop 3 | . . 1 2 Pick Up 15 | 5 3 4 3 Fast Attach 2 | 2 . . . Attach 10 | 4 . 5 1 Detach . | . . . . Swap . | . . . . Drop 2 | . . 2 . Fire 38 | . 7 17 14 Melee . | . . . . Ram . | . . . . Kick . | . . . . Crush . | . . . . Escape Stasis . | . . . . Rewire . | . . . . Trap . | . . . . Miscellaneous . | . . . . Route ------- -11/Junkyard -10/Materials -9/Materials -9/Storage History --------- Turn | Location | Event 8 | -11/Junkyard | Discovered new exit (range 16) 47 | -11/Junkyard | Entered Materials 206 | -10/Materials | Discovered new exit (range 5) 221 | -10/Materials | Entered another Materials area 221 | -9/Materials | Evolved 2 slots: Propulsion x1, Utility x1 314 | -9/Materials | Build established: Mutant 379 | -9/Materials | Discovered new exit (range 10) 405 | -9/Materials | Entered Storage 438 | -9/Storage | Core integrity fell below 50% 459 | -9/Storage | Garrison activated, responded to threat 462 | -9/Storage | Lost 7 parts (2p3n2w) 465 | -9/Storage | Core integrity fell below 20% 470 | -9/Storage | Destroyed by Y-45 Defender with Heavy Assault Rifle Last Messages --------------- 00431_ Flight Unit destroyed. 00431_ Lgt. Ion Engine destroyed. 00436_ Acquired Particle Cannon. 00437_ Critical hit (Burn: +37). 00438_ Y-45 Defender destroyed. 00443_ Destroyed Flight Unit. 00448_ R-06 Scavenger collects Lgt. Treads. 00449_ S-10 Pest destroyed. 00450_ R-06 Scavenger collects Lgt. Ion Engine. 00451_ S-10 Pest destroyed. 00452_ Acquired 10 matter. 00452_ R-06 Scavenger collects Lgt. Treads. 00453_ S-10 Pest destroyed. 00454_ Acquired 3 matter. 00455_ R-06 Scavenger collects Heat Sink. 00457_ Critical hit (Burn: +37). 00459_ Y-45 Defender calls for garrison reinforcements. 00459_ ALERT: Activating Garrison Access S001. 00466_ Y-45 Defender destroyed. 00470_ R-06 Scavenger collects Hvy. Assault Rifle. Map ----- +----------------------------------------------------+ | ?????????????????????????????????????????????????? | | ?????????????????????????????????????????????????? | | ?????????????????????????????????????????????????? | | ?????????????????????????????????????????????????? | | ?????????????????????????????????????????????????? | | ?????????????????????????????????????????????????? | | ?????????????????????????????????????????????????? | | ?????????????????????????????????????????????????? | | ?????????????????????????????????????????????????? | | ?????????????????????????????????????????????????? | | ?????????????????????????????????????????????????? | | ?????????????????????????????????????????????????? | | ?????????????????????????????????????????????????? | | ?????????????????????????????????????????????????? | | ?????????????????????????????????????????????????? | | ?????????????????????????????????????????????????? | | ?????????????????????????????????????????????????? | | ?????????????????????########????????????????????? | | ?????????????????????# ##############???????? | | ?????????????????????# "" # ????????? | | ?????????????????????# T" # #????????? | | ????????????????????## "" # #????????? | | ????????????????????#% # """ """ #????????? | | ?????????????????????# !!# """ """ #????????? | | ?????????????????????# r! # """ """ #????????? | | ?????????????????????# @Y!# #######??? | | ????????????????????######/#########/#### +??? | | ????????????????????# %Y #??? | | ????????????????????# r #??? | | ????????????????????# #??? | | ????????????????????######+############## #??? | | ???????????????????????? ????????#######+###### | | ???????????????????????# "????????# | | ???????????????????????? "????????# """ | | ???????????????????????? "????????# """ """ "R" | | ???????????????????????/ ?????????# """ """ " " | | ???????????????????????# ????????# """ """ | | ???????????????????????# ????????## | | ???????????????????????# ?????????#######/###### | | ???????????????????????####??????????????# | | ???????????????????????????????????????### | | ???????????????????????????????????# | | ???????????????????????????????????# ############# | | ?????????????????????????????????????????????????? | | ?????????????????????????????????????????????????? | | ?????????????????????????????????????????????????? | | ?????????????????????????????????????????????????? | | ?????????????????????????????????????????????????? | | ?????????????????????????????????????????????????? | | ?????????????????????????????????????????????????? | +----------------------------------------------------+ Best States ------------- Heat Dissipation 28 Energy Generation 10 Energy Capacity 250 Matter Stores 300 Matter Capacity 300 Sight Range 16 Terrain Scan Density 10 Evasion (%) 63 Item Schematics ----------------- None Robot Schematics ------------------ None Fabricated ------------ Nothing Alien Tech Used ----------------- None Achievements -------------- None Challenges ------------ None Game ------ Seed SurgeAssemblyGravjet Manual? 0 Play Time 00:07:24 Cumulative 11.4 hours Start 2023.03.19 @ 15:51:21 End 2023.03.19 @ 16:01:10 Sessions 1 Manual Loads 0 Difficulty Rogue Special Mode None Game No. 27 Rogue 27 Adventurer 0 Explorer 0 Win Type - Total 0 Types 0/0/0/0/0/0/0/0/0 Lore% 15 Gallery% 21 Achievement% 16 Wizard Run 0 Options --------- ASCII 0 Keyboard 0 Movement Mouse Keybinds 0 Fullscreen 1 Font 24/Smallcaps Map View 64x52 Tactical HUD 1 Map Filters NONE Filters NONE Steam 1 RUN: 0c8ffc07-1d65-46cf-9fb8-c4d9f1131bf3